bitfinex/quotes_SOLUSD_20240816
["timestamp","ask_amount","ask_price","bid_price","bid_amount"]
[1723837133285,0.8679197,141.43,141.4,7.0721]
[1723837134300,0.8679197,141.43,141.39,24.7535]
[1723837135120,7.9386197,141.43,141.39,24.4535]
[1723837136709,7.9386197,141.43,141.39,17.3811]
[1723837137015,7.9386197,141.43,141.39,24.4534]
[1723837137804,7.9386197,141.43,141.39,17.3811]
[1723837138994,7.9386197,141.43,141.39,24.4536]
[1723837139195,0.8679197,141.43,141.39,17.3811]
[1723837139409,0.8679197,141.43,141.4,7.0718]
[1723837139610,0.8679197,141.43,141.42,7.0711]
[1723837139820,0.8679197,141.43,141.42,8.48183738]
[1723837140129,0.8679197,141.43,141.42,7.0711]
[1723837142233,0.8679197,141.43,141.42,53.48463156]
[1723837143116,0.8679197,141.43,141.42,53.48317707]
[1723837143433,29.7535,141.53,141.48,7.068]
[1723837143636,7.0662,141.52,141.47,7.0685]
[1723837143946,22.6878,141.53,141.46,17.672]
[1723837144430,7.0676,141.49,141.45,7.0695]
[1723837144599,22.6878,141.53,141.45,7.0695]
[1723837144600,7.0672,141.5,141.45,7.0695]
[1723837145000,22.6878,141.53,141.43,17.6759]
[1723837145001,7.0678,141.49,141.44,7.07]
[1723837145236,7.0672,141.5,141.45,45.0]
[1723837145417,22.6878,141.53,141.45,45.0]
[1723837145418,29.7535,141.53,141.45,45.0]
[1723837145627,7.0665,141.52,141.47,7.0685]
[1723837146504,7.0667,141.51,141.47,7.0685]
[1723837147506,7.0672,141.5,141.46,7.069]
[1723837147735,7.0672,141.5,141.45,69.7428]
[1723837148627,7.0676,141.49,141.45,69.7428]
[1723837148832,22.6878,141.53,141.47,17.6706]
[1723837149045,22.6878,141.53,141.47,24.7391]
[1723837149046,7.0667,141.51,141.47,24.7391]
[1723837149945,7.0667,141.51,141.47,17.6706]
[1723837150145,7.0671,141.5,141.45,52.0695]
[1723837152425,22.6878,141.53,141.45,45.0]
[1723837152725,22.6878,141.53,141.45,80.3468]
[1723837152921,29.7538,141.53,141.49,17.669]
[1723837153129,7.066,141.53,141.49,24.7365]
[1723837153549,7.066,141.53,141.49,17.669]
[1723837153935,7.0652,141.54,141.49,24.7364]
[1723837154132,7.0656,141.53,141.5,1.41262548]
[1723837154333,7.0656,141.53,141.49,24.7364]
[1723837155636,7.065,141.55,141.5,7.0671]
[1723837155852,7.0641,141.56,141.51,8.47902325]
[1723837156150,4.2938369,141.57,141.53,24.7288]
[1723837156359,7.9319197,141.57,141.53,17.6634]
[1723837156563,7.0645,141.56,141.51,7.0666]
[1723837157137,0.8679197,141.57,141.54,7.0647]
[1723837157377,0.8679197,141.57,141.53,7.0654]
[1723837158756,7.9316197,141.57,141.53,7.0654]
[1723837159062,7.0642,141.56,141.52,17.6646]
[1723837159263,0.8679197,141.57,141.49,24.7362]
[1723837159264,7.0652,141.54,141.49,24.7362]
[1723837159858,18.5275197,141.57,141.46,24.7409]
[1723837159859,7.067,141.51,141.46,24.7409]
[1723837160059,16.3498,141.56,141.44,6.043]
[1723837160375,0.8679197,141.57,141.53,17.664]
[1723837160559,0.8679197,141.57,141.54,0.57975807]
[1723837160868,0.8679197,141.57,141.54,0.57960189]
[1723837161168,0.8679197,141.57,141.53,24.7295]
[1723837161369,7.9316197,141.57,141.53,24.7295]
[1723837161750,0.8679197,141.57,141.53,24.7291]
[1723837162666,0.8679197,141.57,141.54,7.0651]
[1723837162878,0.8679197,141.57,141.55,7.0646]
[1723837163172,0.8679197,141.57,141.56,7.0641]
[1723837163369,0.8679197,141.57,141.56,52.0641]
[1723837169057,0.8679197,141.57,141.56,7.0641]
[1723837170055,0.8679197,141.57,141.55,402.9608]
[1723837170280,0.8679197,141.57,141.55,410.025]
[1723837170481,0.8679197,141.57,141.56,7.0641]
[1723837171183,0.8679197,141.57,141.55,410.0252]
[1723837172474,0.8679197,141.57,141.56,7.0641]
[1723837172693,0.8679197,141.57,141.56,52.0641]
[1723837173082,0.8679197,141.57,141.56,53.47588789]
[1723837173391,0.8679197,141.57,141.56,52.0641]
[1723837176583,0.8679197,141.57,141.55,17.6608]
[1723837176882,0.8679197,141.57,141.55,24.725]
[1723837177495,0.8679197,141.57,141.55,17.6608]
[1723837177725,0.8679197,141.57,141.53,385.3]
[1723837178507,0.8679197,141.57,141.54,7.0647]
[1723837178806,0.8679197,141.57,141.54,17.6623]
[1723837179105,0.8679197,141.57,141.54,24.7272]
[1723837179478,0.8679197,141.57,141.55,7.0645]
[1723837180196,0.8679197,141.57,141.54,24.7272]
[1723837180595,0.8679197,141.57,141.54,17.6623]
[1723837180915,0.8679197,141.57,141.54,7.065]
[1723837182212,7.9316197,141.57,141.53,24.7288]
[1723837182695,7.9316197,141.57,141.53,17.6633]
[1723837182886,7.0642,141.56,141.52,7.0659]
[1723837183090,7.0642,141.56,141.5,17.6671]
[1723837183091,7.9316197,141.57,141.53,7.0655]
[1723837184085,0.8679197,141.57,141.54,17.6622]
[1723837184306,0.8679197,141.57,141.56,7.0641]
[1723837184485,0.8679197,141.57,141.56,52.0641]
[1723837186784,0.8679197,141.57,141.56,53.47606403]
[1723837187481,0.8679197,141.57,141.56,52.0641]
[1723837191713,0.8679197,141.57,141.56,115.26244485]
[1723837191917,0.8679197,141.57,141.56,114.82014125]
[1723837192103,0.8679197,141.57,141.56,116.2320792]
[1723837192421,0.8679197,141.57,141.56,114.82014125]
[1723837192629,0.8679197,141.57,141.56,116.23206457]
[1723837192916,0.8679197,141.57,141.56,114.82014125]
[1723837193090,0.8679197,141.57,141.56,156.10014125]
[1723837193091,1.97e-05,141.57,141.56,156.10014125]
[1723837193295,6.3996,141.67,141.64,7.06]
[1723837193593,6.3996,141.67,141.64,7.50598765]
[1723837193824,0.8679197,141.71,141.68,17.6453]
[1723837194131,0.8679197,141.71,141.68,24.703]
[1723837194429,0.8679197,141.71,141.69,8.46744677]
[1723837195526,0.8679197,141.71,141.68,17.6453]
[1723837195694,0.8679197,141.71,141.68,24.7033]
[1723837196520,0.8679197,141.71,141.69,1.41123181]
[1723837196700,0.8679197,141.71,141.68,24.7033]
[1723837196900,0.8679197,141.71,141.69,7.0576]
[1723837197624,0.8679197,141.71,141.68,24.7033]
[1723837197804,0.8679197,141.71,141.67,7.0585]
[1723837199009,7.9246197,141.71,141.67,7.0585]
[1723837199530,7.0571,141.7,141.65,24.7076]
[1723837199701,0.8679197,141.71,141.65,17.6485]
[1723837200317,6.4092,141.7,141.65,17.6485]
[1723837200520,7.0577,141.69,141.65,17.6485]
[1723837200820,13.4664,141.7,141.65,24.708]
[1723837201000,7.0577,141.69,141.65,24.708]
[1723837201209,23.4548,141.68,141.62,17.6522]
[1723837201808,23.4548,141.68,141.64,7.06]
[1723837202204,7.0592,141.66,141.62,17.6522]
[1723837202417,16.3966,141.68,141.59,402.9562]
[1723837202601,16.3966,141.68,141.59,410.0187]
[1723837202602,7.0605,141.64,141.59,410.0187]
[1723837203418,7.0605,141.64,141.6,7.0621]
[1723837204127,7.0605,141.64,141.59,410.0186]
[1723837204709,7.0605,141.64,141.6,7.0621]
[1723837205028,7.0595,141.66,141.62,7.0611]
[1723837205213,7.0595,141.66,141.61,24.7148]
[1723837205428,16.3966,141.68,141.63,7.0602]
[1723837205631,23.4551,141.68,141.63,8.15760722]
[1723837205827,23.4551,141.68,141.64,7.0601]
[1723837206003,23.4551,141.68,141.65,1.09814564]
[1723837206398,23.4551,141.68,141.64,7.0601]
[1723837206807,23.4551,141.68,141.59,24.7177]
[1723837206808,7.0605,141.64,141.59,24.7177]
[1723837207015,7.0605,141.64,141.59,17.6554]
[1723837207216,7.0588,141.67,141.62,7.0611]
[1723837208049,16.3966,141.68,141.63,17.651]
[1723837208337,16.3966,141.68,141.65,7.0592]
[1723837209006,16.3966,141.68,141.64,45.0]
[1723837209007,23.4549,141.68,141.64,7.06]
[1723837209637,16.3966,141.68,141.65,7.0594]
[1723837209936,23.4549,141.68,141.64,7.06]
[1723837210314,7.0592,141.66,141.6,17.6545]
[1723837210702,7.0588,141.67,141.62,7.0608]
[1723837211314,7.0591,141.66,141.62,7.0608]
[1723837211727,7.0588,141.67,141.63,7.0605]
[1723837212045,7.0588,141.67,141.64,1.41178404]
[1723837212352,16.3966,141.68,141.64,19.06178404]
[1723837213207,16.3966,141.68,141.65,7.0592]
[1723837213428,16.3966,141.68,141.66,1.41159569]
[1723837214011,16.3966,141.68,141.65,7.0592]
[1723837214234,16.3966,141.68,141.64,24.7099]
[1723837214442,23.4547,141.68,141.64,24.7099]
[1723837214624,16.3966,141.68,141.65,7.0596]
[1723837215137,23.4547,141.68,141.64,24.71]
[1723837215664,16.3966,141.68,141.65,7.0596]
[1723837216915,16.3966,141.68,141.61,17.6531]
[1723837217126,7.06,141.65,141.61,24.7146]
[1723837218065,16.3966,141.68,141.58,17.6569]
[1723837218239,6.4083,141.67,141.58,17.6569]
[1723837218552,7.0612,141.62,141.58,24.7197]
[1723837218781,16.3224,141.61,141.55,17.6608]
[1723837218931,16.3224,141.61,141.53,428.01238444]
[1723837219148,16.3224,141.61,141.6,7.0621]
[1723837219346,23.3823,141.65,141.6,7.0621]
[1723837219663,23.3823,141.65,141.56,17.6597]
[1723837219664,33.9719,141.65,141.56,17.6597]
[1723837219861,7.0625,141.6,141.56,17.6597]
[1723837220562,7.0612,141.62,141.56,17.6597]
[1723837220746,7.061,141.63,141.58,24.7203]
[1723837220945,7.061,141.63,141.53,420.6268]
[1723837220946,16.3224,141.65,141.57,7.0631]
[1723837221454,7.0619,141.61,141.57,7.0631]
[1723837221851,7.0619,141.61,141.58,1.41230647]
[1723837222049,16.3224,141.65,141.58,1.41201313]
[1723837222335,7.061,141.63,141.58,7.0629]
[1723837222759,7.0615,141.62,141.57,24.722]
[1723837222956,7.062,141.61,141.57,17.6587]
[1723837223155,7.0613,141.62,141.57,24.7222]
[1723837223355,7.0617,141.61,141.57,24.7222]
[1723837223567,7.0621,141.6,141.55,7.0641]
[1723837223747,17.6507,141.64,141.54,24.7271]
[1723837223948,17.6507,141.64,141.55,7.0646]
[1723837224953,7.0621,141.6,141.55,7.0646]
[1723837225268,7.0634,141.58,141.54,17.6621]
[1723837225466,6.5171,141.59,141.5,428.02068317]
[1723837225467,7.0641,141.56,141.52,7.0661]
[1723837225855,22.4462,141.57,141.53,7.0655]
[1723837226056,15.3824,141.57,141.52,7.0659]
[1723837227076,7.0642,141.56,141.52,7.0659]
[1723837227245,7.0634,141.58,141.54,7.0651]
[1723837227446,6.5171,141.59,141.54,7.0651]
[1723837227650,7.0632,141.58,141.53,24.7289]
[1723837228273,7.0636,141.57,141.53,24.7289]
[1723837229365,7.0632,141.58,141.53,24.7289]
[1723837230174,7.0636,141.57,141.53,17.6635]
[1723837230881,7.0636,141.57,141.53,24.7287]
[1723837231055,6.5171,141.59,141.5,17.6669]
[1723837231254,24.1741,141.59,141.5,17.6669]
[1723837231681,7.065,141.55,141.51,7.0666]
[1723837232986,7.0642,141.56,141.51,7.0666]
[1723837233371,7.0637,141.57,141.5,17.6669]
[1723837233555,7.0637,141.57,141.52,7.0658]
[1723837233757,6.5171,141.59,141.52,17.6649]
[1723837233758,7.0632,141.58,141.52,17.6649]
[1723837233957,13.5798,141.59,141.53,1.41283007]
[1723837234174,13.5798,141.59,141.52,1.41268319]
[1723837234686,13.5798,141.59,141.54,17.6624]
[1723837235184,13.5798,141.59,141.54,24.7273]
[1723837237466,7.0632,141.58,141.54,24.7273]
[1723837237863,6.5171,141.59,141.51,17.6656]
[1723837238182,6.5171,141.59,141.51,24.7318]
[1723837238479,7.0647,141.55,141.51,24.7318]
[1723837238655,7.0643,141.56,141.51,24.7318]
[1723837238889,7.0634,141.58,141.53,7.0653]
[1723837239092,7.0634,141.58,141.54,7.0651]
[1723837240159,6.5171,141.59,141.55,17.6612]
[1723837240361,15.2923,141.6,141.56,8.47582075]
[1723837240570,15.2923,141.6,141.56,7.0639]
[1723837240772,15.2923,141.6,141.56,8.47550825]
[1723837240975,22.3544,141.6,141.56,7.0639]
[1723837241475,15.2923,141.6,141.56,7.0639]
[1723837241655,15.2923,141.6,141.57,7.0635]
[1723837242187,22.3545,141.6,141.56,7.0639]
[1723837243259,7.0626,141.59,141.55,24.7258]
[1723837245065,7.0626,141.59,141.55,17.6612]
[1723837245266,7.0639,141.57,141.52,17.6644]
[1723837245468,15.2923,141.6,141.52,24.7301]
[1723837245667,7.0637,141.57,141.53,7.0656]
[1723837249975,15.2923,141.6,141.53,7.0656]
[1723837250316,15.2923,141.6,141.49,17.6684]
[1723837250475,15.2923,141.6,141.5,45.0]
[1723837250476,17.6582,141.58,141.5,45.0]
[1723837251022,7.0643,141.56,141.52,7.0661]
[1723837251176,6.097,141.57,141.48,410.35599896]
[1723837251376,6.097,141.57,141.49,7.0672]
[1723837251684,7.0653,141.54,141.49,7.0672]
[1723837252203,7.0656,141.53,141.49,7.0672]
[1723837252500,15.2245,141.55,141.45,53.0209]
[1723837252702,17.6632,141.54,141.45,17.6731]
[1723837252997,17.6632,141.54,141.42,385.3]
[1723837252998,17.6658,141.52,141.44,7.0701]
[1723837253203,6.5973,141.51,141.43,7.0703]
[1723837253380,7.0689,141.47,141.42,24.7479]
[1723837254301,32.8929,141.5,141.42,17.6769]
[1723837254905,7.0692,141.46,141.42,17.6769]
[1723837255479,7.0701,141.44,141.39,17.6812]
[1723837255700,7.0691,141.46,141.41,7.0715]
[1723837255909,7.07,141.45,141.4,7.072]
[1723837256566,7.0702,141.44,141.4,7.072]
[1723837256766,7.0702,141.44,141.39,24.7536]
[1723837257472,7.0702,141.44,141.39,23.7536]
[1723837257965,7.0707,141.43,141.38,7.0729]
[1723837258394,7.0711,141.42,141.38,7.0729]
[1723837259121,23.1909,141.43,141.39,7.0726]
[1723837259337,16.1202,141.43,141.39,7.0726]
[1723837261437,23.1909,141.43,141.39,7.0726]
[1723837265031,23.1909,141.43,141.38,24.7553]
[1723837265228,7.0717,141.41,141.35,17.6859]
[1723837266101,7.0717,141.41,141.36,7.074]
[1723837266430,7.0717,141.41,141.37,7.0736]
[1723837266622,7.0717,141.41,141.35,17.6859]
[1723837267205,7.0726,141.39,141.35,24.76]
[1723837268906,16.1202,141.43,141.34,68.9551]
[1723837269100,16.1202,141.43,141.39,17.6803]
[1723837269347,16.1202,141.43,141.35,7.0744]
[1723837269851,7.0722,141.4,141.36,7.0741]
[1723837270189,7.0712,141.42,141.38,7.073]
[1723837270482,23.1909,141.43,141.39,7.0726]
[1723837272078,23.1909,141.43,141.37,17.6831]
[1723837272271,16.1202,141.43,141.39,17.6807]
[1723837272476,16.1202,141.43,141.4,45.0]
[1723837272684,53.0044,141.5,141.4,45.0]
[1723837272685,7.0692,141.46,141.4,45.0]
[1723837272848,7.0697,141.45,141.4,45.0]
[1723837273081,7.0697,141.45,141.4,52.0717]
[1723837273993,7.0697,141.45,141.41,7.0715]
[1723837274206,29.1394,141.48,141.4,45.0]
[1723837274391,7.069,141.47,141.42,7.071]
[1723837274679,7.0704,141.44,141.4,62.6795]
[1723837274982,39.7415,141.48,141.38,7.0731]
[1723837275189,17.6733,141.46,141.37,17.6835]
[1723837275405,15.9021,141.41,141.37,17.6835]
[1723837275567,15.9021,141.41,141.39,17.681]
[1723837275769,6.2663,141.48,141.39,17.681]
[1723837275970,15.9021,141.47,141.39,17.681]
[1723837276169,7.0704,141.44,141.39,17.681]
[1723837276567,15.9021,141.47,141.41,17.6785]
[1723837276792,15.9021,141.47,141.42,7.0707]
[1723837277093,7.0694,141.46,141.41,24.7499]
[1723837277494,22.9708,141.47,141.42,7.071]
[1723837277680,7.0704,141.44,141.39,7.0722]
[1723837277883,7.0697,141.45,141.4,52.0719]
[1723837279792,15.9021,141.47,141.38,17.6822]
[1723837279793,33.5741,141.47,141.38,17.6822]
[1723837279996,33.5741,141.47,141.36,385.3]
[1723837280201,7.0717,141.41,141.37,7.0734]
[1723837280784,15.2675,141.4,141.37,7.0734]
[1723837280986,15.2675,141.4,141.36,392.3737]
[1723837282104,15.2675,141.4,141.36,391.8737]
[1723837282499,15.2675,141.4,141.37,7.0736]
[1723837283003,15.2675,141.4,141.37,7.05005441]
[1723837283578,15.2675,141.4,141.37,17.6833]
[1723837283806,15.0226,141.44,141.38,45.0]
[1723837283984,15.0226,141.44,141.38,1.37488868]
[1723837284974,22.0928,141.44,141.4,7.0721]
[1723837285304,22.0928,141.44,141.4,8.44669697]
[1723837285809,22.0928,141.44,141.39,24.7534]
[1723837286007,7.0706,141.43,141.4,45.0]
[1723837286183,22.0929,141.44,141.4,45.0]
[1723837286385,22.0929,141.44,141.4,52.0721]
[1723837286602,22.0929,141.44,141.4,45.0]
[1723837286907,7.0712,141.42,141.39,17.681]
[1723837287082,7.0712,141.42,141.38,7.073]
[1723837290507,7.0722,141.4,141.36,17.6844]
[1723837290695,7.0727,141.39,141.34,392.19592564]
[1723837291012,7.0727,141.39,141.35,7.0746]
[1723837291314,7.0727,141.39,141.34,7.0749]
[1723837291498,7.0736,141.37,141.33,24.7635]
[1723837291805,7.0733,141.38,141.33,24.7635]
[1723837292009,7.075,141.35,141.3,32.16645306]
[1723837292204,7.0754,141.34,141.3,25.08965306]
[1723837292415,7.0754,141.34,141.3,17.6919]
[1723837292784,7.0747,141.35,141.3,17.6919]
[1723837293797,7.0742,141.36,141.31,7.0763]
[1723837294201,22.599,141.37,141.3,17.6919]
[1723837294410,15.5253,141.37,141.32,17.6898]
[1723837294601,15.5253,141.37,141.33,45.0]
[1723837294985,16.2378,141.42,141.34,17.6873]
[1723837295221,7.0725,141.4,141.35,52.0745]
[1723837295617,7.0725,141.4,141.36,7.074]
[1723837296025,7.0726,141.39,141.37,45.0]
[1723837296196,7.0726,141.39,141.35,52.0745]
[1723837296393,7.0721,141.4,141.36,7.074]
[1723837296634,7.0721,141.4,141.37,45.0]
[1723837298707,16.2378,141.42,141.37,46.41230173]
[1723837298921,16.2378,141.42,141.38,7.073]
[1723837299241,16.2378,141.42,141.39,45.0]
[1723837299727,23.309,141.42,141.39,45.0]
[1723837300215,16.2378,141.42,141.35,17.6858]
[1723837300411,7.0722,141.4,141.36,45.0]
[1723837300820,7.0722,141.4,141.37,1.4117272]
[1723837301534,7.0716,141.41,141.37,7.0736]
[1723837301712,7.0716,141.41,141.37,8.48789301]
[1723837301912,7.0716,141.41,141.37,7.0736]
[1723837302318,23.309,141.42,141.38,52.073]
[1723837302520,23.309,141.42,141.38,45.0]
[1723837303610,7.0721,141.4,141.36,7.0741]
[1723837303813,7.0721,141.4,141.37,45.0]
[1723837306318,23.3093,141.42,141.38,7.0731]
[1723837306524,23.3093,141.42,141.38,8.4872903]
[1723837307433,16.2378,141.42,141.39,52.0725]
[1723837307737,16.2378,141.42,141.4,46.41413039]
[1723837308435,16.2378,141.42,141.4,45.0]
[1723837310821,16.2378,141.42,141.37,17.6836]
[1723837311041,7.0736,141.37,141.33,384.8]
[1723837311226,7.0736,141.37,141.33,7.0755]
[1723837311427,16.2378,141.42,141.31,17.6907]
[1723837311642,7.0747,141.35,141.31,24.7671]
[1723837311818,17.6809,141.4,141.31,24.7671]
[1723837311819,7.0751,141.34,141.31,17.6907]
[1723837312156,16.0736,141.35,141.28,24.7724]
[1723837312360,16.0736,141.35,141.28,17.6945]
[1723837312643,7.0762,141.32,141.28,17.6945]
[1723837313835,7.0762,141.32,141.28,24.7725]
[1723837314040,7.0757,141.33,141.28,24.7725]
[1723837314268,7.0757,141.33,141.29,7.0774]
[1723837316260,7.0757,141.33,141.28,24.7725]
[1723837316426,7.0757,141.33,141.29,45.0]
[1723837317418,7.0757,141.33,141.29,52.0775]
[1723837319346,16.0736,141.35,141.25,17.6983]
[1723837320252,17.6881,141.34,141.25,17.6983]
[1723837320466,7.0779,141.29,141.25,17.6983]
[1723837320668,7.0779,141.29,141.25,24.7778]
[1723837321554,17.6881,141.34,141.25,24.7778]
[1723837321555,7.0771,141.3,141.25,17.6983]
[1723837321850,7.0771,141.3,141.26,45.0]
[1723837322733,19.42493349,141.35,141.26,45.0]
[1723837322935,7.0759,141.33,141.28,7.0779]
[1723837323134,16.0736,141.35,141.29,45.0]
[1723837323330,16.0736,141.35,141.26,45.0]
[1723837324043,7.0752,141.34,141.3,7.077]
[1723837324348,7.0757,141.33,141.29,17.6936]
[1723837324753,7.0757,141.33,141.29,24.771]
[1723837325520,7.0757,141.33,141.26,45.0]
[1723837325521,33.7605,141.35,141.26,24.7757]
[1723837325724,33.7605,141.35,141.23,384.8]
[1723837325725,16.6637,141.27,141.23,384.8]
[1723837326037,16.6637,141.27,141.24,7.0798]
[1723837326431,16.6637,141.27,141.25,7.0796]
[1723837326628,16.6637,141.27,141.25,7.0794]
[1723837327155,7.0775,141.3,141.26,7.0791]
[1723837327330,7.0775,141.3,141.27,7.0785]
[1723837327331,16.2179,141.3,141.27,7.0785]
[1723837327530,16.2179,141.3,141.28,45.0]
[1723837327750,6.4711,141.32,141.28,62.6948]
[1723837328052,16.2179,141.34,141.28,45.0]
[1723837328355,16.2179,141.34,141.33,7.0756]
[1723837330236,16.2179,141.34,141.32,24.7655]
[1723837330860,6.4711,141.36,141.33,7.0753]
[1723837331059,17.6787,141.42,141.32,36.79533896]
[1723837331060,6.0662,141.4,141.32,36.79533896]
[1723837331361,22.153,141.42,141.37,7.0735]
[1723837332029,7.0716,141.41,141.37,7.0735]
[1723837332230,15.0818,141.42,141.38,45.0]
[1723837332433,15.0818,141.42,141.38,52.0727]
[1723837332656,14.5818,141.42,141.38,52.0727]
[1723837332856,7.0692,141.46,141.4,17.6796]
[1723837333026,7.0697,141.45,141.41,7.0714]
[1723837333233,7.0697,141.45,141.4,24.7516]
[1723837333635,7.0697,141.45,141.41,7.0715]
[1723837333833,7.0697,141.45,141.4,24.7516]
[1723837334163,7.0703,141.44,141.4,17.6796]
[1723837335062,7.0715,141.42,141.37,17.6838]
[1723837335938,15.3463,141.43,141.37,17.6838]
[1723837336562,15.3463,141.43,141.38,45.0]
[1723837336750,7.0712,141.42,141.38,45.0]
[1723837337060,22.4169,141.43,141.38,52.0727]
[1723837337356,22.4169,141.43,141.39,17.6811]
[1723837337357,15.3463,141.43,141.39,17.6811]
[1723837337564,15.8007,141.46,141.4,45.0]
[1723837338757,22.8699,141.46,141.41,8.48531675]
[1723837338938,22.8699,141.46,141.42,45.0]
[1723837340637,7.0684,141.48,141.44,7.0701]
[1723837341240,15.6924,141.5,141.42,17.6774]
[1723837341533,7.0696,141.45,141.41,7.0715]
[1723837341847,15.6924,141.5,141.4,7.072]
[1723837341848,17.6698,141.49,141.4,7.072]
[1723837342564,7.0692,141.46,141.41,7.0715]
[1723837343158,7.0687,141.47,141.41,17.6786]
[1723837343332,19.12031773,141.5,141.39,384.8]
[1723837343534,7.0697,141.45,141.41,7.0715]
[1723837343733,7.0692,141.46,141.42,7.071]
[1723837344060,7.0692,141.46,141.42,8.48478289]
[1723837344860,7.0692,141.46,141.42,7.071]
[1723837345462,19.12031773,141.5,141.42,17.6774]
[1723837345463,7.0687,141.47,141.42,17.6774]
[1723837345646,7.0687,141.47,141.42,24.7483]
[1723837346050,7.0691,141.46,141.42,24.7483]
[1723837346239,17.6698,141.49,141.4,45.0]
[1723837346777,7.0677,141.49,141.45,7.0692]
[1723837346970,15.6924,141.5,141.44,17.6746]
[1723837346971,7.0681,141.48,141.44,17.6746]
[1723837347342,7.0686,141.47,141.44,17.6746]
[1723837347553,7.0691,141.46,141.42,7.071]
[1723837347753,7.0688,141.47,141.43,45.0]
[1723837347958,7.068,141.49,141.44,7.07]
[1723837348162,15.6924,141.5,141.44,7.07]
[1723837348845,7.0682,141.48,141.43,52.0704]
[1723837349277,15.6924,141.5,141.43,45.0]
[1723837349445,15.6924,141.5,141.46,7.0687]
[1723837349840,22.7598,141.5,141.45,24.743]
[1723837350039,15.6924,141.5,141.45,24.743]
[1723837351069,22.7597,141.5,141.45,24.743]
[1723837351370,22.7597,141.5,141.46,45.0]
[1723837351755,22.7597,141.5,141.45,24.743]
[1723837352077,7.0685,141.48,141.43,7.0704]
[1723837352273,7.0685,141.48,141.44,45.0]
[1723837352459,7.0694,141.46,141.44,45.0]
[1723837352773,7.0701,141.44,141.42,384.8]
[1723837352977,7.0703,141.44,141.42,384.8]
[1723837353467,15.6924,141.5,141.42,384.8]
[1723837353843,7.0696,141.45,141.42,384.8]
[1723837355143,7.0702,141.44,141.42,384.8]
[1723837355665,7.0702,141.44,141.4,7.072]
[1723837356051,7.0702,141.44,141.35,41.5751]
[1723837356052,6.0318,141.48,141.35,17.686]
[1723837356246,6.0318,141.48,141.33,7.0751]
[1723837356247,7.0731,141.38,141.33,7.0751]
[1723837356446,7.0738,141.37,141.32,17.6895]
[1723837356667,7.0738,141.37,141.32,24.7652]
[1723837356846,7.0738,141.37,141.32,17.6895]
[1723837357048,7.0732,141.38,141.33,7.0755]
[1723837357248,7.0737,141.37,141.33,7.0755]
[1723837357645,7.0737,141.37,141.32,24.7655]
[1723837357860,7.0737,141.37,141.33,7.0755]
[1723837358663,7.0737,141.37,141.32,24.7655]
[1723837359371,7.0732,141.38,141.33,7.0754]
[1723837359670,7.0737,141.37,141.32,24.7655]
[1723837359853,7.0749,141.35,141.29,17.6936]
[1723837360052,6.6333,141.39,141.3,7.0767]
[1723837360053,24.3155,141.39,141.3,7.0767]
[1723837360459,7.0747,141.35,141.3,7.0767]
[1723837360851,7.0742,141.36,141.31,7.0765]
[1723837362961,6.6333,141.39,141.33,7.0752]
[1723837363248,7.0736,141.37,141.33,7.0756]
[1723837363650,7.0732,141.38,141.34,7.0751]
[1723837364668,7.0732,141.38,141.35,1.41468006]
[1723837364871,7.0736,141.37,141.33,24.764]
[1723837365175,7.0736,141.37,141.33,17.6886]
[1723837365556,7.0741,141.36,141.33,17.6886]
[1723837365871,6.6333,141.39,141.31,7.0764]